fUST/lending_fUST_20250226
["ID","MTS","AMOUNT","RATE_DAILY","PERIOD"]
[354574831,1740579514572,-151.0,0.000484,120]
[354574832,1740579514599,-1450.988475,0.000484,120]
[354574833,1740579514626,-157.914161,0.000484,120]
[354574834,1740579514653,-151.0,0.000484,120]
[354574835,1740579514679,-1450.988475,0.000484,120]
[354574836,1740579514705,-157.914161,0.000484,120]
[354574837,1740579514732,-151.0,0.000484,120]
[354574838,1740579514758,-151.0,0.000484,120]
[354574839,1740579514783,-259.892005,0.000484,120]
[354574840,1740579514808,-259.892005,0.000484,120]
[354574841,1740579514833,-151.0,0.000486,30]
[354574842,1740579514859,-151.221897,0.000486,120]
[354574843,1740579514885,-151.0,0.000486,30]
[354574844,1740579514910,-18663.0,0.00049,120]
[354574845,1740579514936,-3090.0,0.00049,120]
[354574846,1740579514961,-503.374071,0.00049,120]
[354574847,1740579514988,-503.374071,0.00049,120]
[354574848,1740579515013,-198.809164,0.00049,120]
[354574849,1740579515044,-151.0,0.00049,120]
[354574850,1740579515069,-1079.862756,0.00049,120]
[354574851,1740579515095,-1079.862756,0.00049,120]
[354574852,1740579515121,-44097.76,0.000492,30]
[354574853,1740579515148,-151.0,0.000492,120]
[354574854,1740579515193,-500.0,0.000492,30]
[354574855,1740579515236,-500.0,0.000492,30]
[354574856,1740579515281,-500.0,0.000492,30]
[354574857,1740579515324,-500.0,0.000492,30]
[354574858,1740579515360,-500.0,0.000492,30]
[354574859,1740579515404,-500.0,0.000492,30]
[354574860,1740579515442,-500.0,0.000492,30]
[354574861,1740579515483,-500.0,0.000492,30]
[354574862,1740579515519,-500.0,0.000492,30]
[354574863,1740579515554,-500.0,0.000492,30]
[354574864,1740579515590,-500.0,0.000492,30]
[354574865,1740579515627,-500.0,0.000492,30]
[354574866,1740579515663,-500.0,0.000492,30]
[354574867,1740579515699,-500.0,0.000492,30]
[354574868,1740579515735,-500.0,0.000492,30]
[354574869,1740579515770,-500.0,0.000492,30]
[354574870,1740579515805,-500.0,0.000492,30]
[354574871,1740579515839,-500.0,0.000492,30]
[354574872,1740579515873,-500.0,0.000492,30]
[354574873,1740579515907,-500.0,0.000492,30]
[354574874,1740579515942,-500.0,0.000492,30]
[354574875,1740579515978,-500.0,0.000492,30]
[354574876,1740579516013,-500.0,0.000492,30]
[354574877,1740579516048,-500.0,0.000492,30]
[354574878,1740579516083,-500.0,0.000492,30]
[354574879,1740579516117,-613.498043,0.000492,30]
[354574880,1740579516154,-151.0,0.000492,120]
[354574881,1740579516189,-151.0,0.000492,120]
[354574882,1740579516227,-151.0,0.000492,120]
[354574883,1740579516262,-151.0,0.000492,120]
[354574884,1740579516298,-1450.988475,0.000492,120]
[354574885,1740579516335,-157.914161,0.000492,120]
[354574886,1740579516372,-151.0,0.000492,120]
[354574887,1740579516408,-1450.988475,0.000492,120]
[354574888,1740579516446,-157.914161,0.000492,120]
[354574889,1740579516482,-151.0,0.000492,120]
[354574890,1740579516693,-151.0,0.000492,120]
[354574891,1740579516720,-259.892005,0.000492,120]
[354574892,1740579516748,-259.892005,0.000492,120]
[354574893,1740579516774,-716.92,0.000493,30]
[354574894,1740579516799,-151.0,0.00049315,120]
[354574895,1740579516825,-151.0,0.00049315,120]
[354574896,1740579516850,-151.0,0.00049315,120]
[354574897,1740579516875,-156.852496,0.00049315,120]
[354574898,1740579516900,-156.852496,0.00049315,120]
[354574899,1740579516926,-231.622582,0.00049315,110]
[354574900,1740579516952,-231.622582,0.00049315,110]
[354574901,1740579516977,-151.0,0.00049315,120]
[354574902,1740579517004,-500.0,0.00049315,120]
[354574903,1740579517030,-151.0,0.00049315,120]
[354574904,1740579517055,-151.0,0.00049315,120]
[354574905,1740579517080,-1450.988475,0.00049315,120]
[354574906,1740579517106,-157.914161,0.00049315,120]
[354574907,1740579517132,-151.0,0.00049315,120]
[354574908,1740579517156,-1450.988475,0.00049315,120]
[354574909,1740579517181,-157.914161,0.00049315,120]
[354574910,1740579517206,-503.374071,0.00049315,120]
[354574911,1740579517231,-503.374071,0.00049315,120]
[354574912,1740579517255,-503.374071,0.00049315,120]
[354574913,1740579517279,-503.374071,0.00049315,120]
[354574914,1740579517304,-151.0,0.00049315,120]
[354574915,1740579517333,-151.0,0.00049315,120]
[354574916,1740579517360,-151.0,0.00049315,120]
[354574917,1740579517388,-1079.862756,0.00049315,120]
[354574918,1740579517416,-1079.862756,0.00049315,120]
[354574919,1740579517443,-151.0,0.00049315,120]
[354574920,1740579517471,-1079.862756,0.00049315,120]
[354574921,1740579517501,-1079.862756,0.00049315,120]
[354574922,1740579517528,-259.892005,0.00049315,120]
[354574923,1740579517555,-259.892005,0.00049315,120]
[354574924,1740579517581,-5000.0,0.00049315,30]
[354574925,1740579517607,-5000.0,0.00049315,30]
[354574926,1740579517632,-5000.0,0.00049315,30]
[354574927,1740579517659,-5000.0,0.00049315,30]
[354574928,1740579517685,-5000.0,0.00049315,30]
[354574929,1740579517712,-5000.0,0.00049315,30]
[354574930,1740579517743,-5000.0,0.00049315,30]
[354574931,1740579517772,-5000.0,0.00049315,30]
[354574932,1740579517801,-5000.0,0.00049315,30]
[354574933,1740579517827,-5000.0,0.00049315,30]
[354574934,1740579517854,-5000.0,0.00049315,30]
[354574935,1740579517880,-5000.0,0.00049315,30]
[354574936,1740579517907,-5000.0,0.00049315,30]
[354574937,1740579517935,-5000.0,0.00049315,30]
[354574938,1740579517960,-1709.266725,0.00049315,30]
[354574939,1740579517989,-500.0,0.00049452,120]
[354574940,1740579518015,-500.0,0.00049589,120]
[354574941,1740579518042,-500.0,0.00049726,120]
[354574942,1740579518067,-2000.0,0.00049836,120]
[354574943,1740579518093,-500.0,0.00049863,120]
[354574944,1740579518117,-151.0,0.0005,120]
[354574945,1740579518143,-151.0,0.0005,120]
[354574946,1740579518168,-151.0,0.0005,120]
[354574947,1740579518194,-500.0,0.0005,120]
[354574948,1740579518220,-200.0,0.0005,120]
[354574949,1740579518249,-500.0,0.00050136,120]
[354574950,1740579518276,-231.13367401,0.00050273,120]
[354574951,1740579518302,-151.0,0.0005068,120]
[354574952,1740579518330,-151.0,0.0005069,30]
[354574953,1740579518356,-151.0,0.0005069,30]
[354574954,1740579518386,-151.0,0.0005069,120]
[354574955,1740579518414,-151.0,0.000507,120]
[354574956,1740579518443,-151.0,0.000507,120]
[354574957,1740579518471,-151.0,0.000507,120]
[354574958,1740579518502,-18900.0,0.000507,30]
[354574959,1740579518528,-46022.68,0.000507,30]
[354574960,1740579518555,-2915.77,0.000507,30]
[354574961,1740579518581,-151.0,0.000507,120]
[354574962,1740579518608,-151.0,0.000507,120]
[354574963,1740579518635,-151.0,0.000507,120]
[354574964,1740579518661,-151.0,0.000507,120]
[354574965,1740579518689,-1450.988475,0.000507,120]
[354574966,1740579518716,-157.914161,0.000507,120]
[354574967,1740579518747,-151.0,0.000507,120]
[354574968,1740579518774,-1450.988475,0.000507,120]
[354574969,1740579518801,-157.914161,0.000507,120]
[354574970,1740579518827,-503.374071,0.000507,120]
[354574971,1740579518853,-503.374071,0.000507,120]
[354574972,1740579518880,-151.0,0.000507,120]
[354574973,1740579518908,-151.0,0.000507,120]
[354574974,1740579518935,-1079.862756,0.000507,120]
[354574975,1740579519097,-151.0,0.000507,120]
[354574976,1740579519124,-1079.862756,0.000507,120]
[354574977,1740579519151,-259.892005,0.000507,120]
[354574978,1740579519178,-259.892005,0.000507,120]
[354574979,1740579519206,-151.0,0.00050986,120]
[354574980,1740579519233,-18663.0,0.00051,120]
[354574981,1740579519259,-3090.0,0.00051,120]
[354574982,1740579519285,-152.116774,0.00051,120]
[354574983,1740579519313,-151.0,0.00051,30]
[354574984,1740579519340,-151.0,0.00051,30]
[354574985,1740579519372,-151.0,0.00051,120]
[354574986,1740579519401,-151.0,0.00051,120]
[354574987,1740579519431,-166078.35978692,0.000511,62]
[354574988,1740579519459,-44097.76,0.000511,30]
[354574989,1740579519490,-151.0,0.000511,120]
[354574990,1740579519517,-151.0,0.000511,120]
[354574991,1740579519545,-151.0,0.000511,120]
[354574992,1740579519573,-151.0,0.000511,120]
[354574993,1740579519601,-1450.988475,0.000511,120]
[354574994,1740579519628,-157.914161,0.000511,120]
[354574995,1740579519656,-1450.988475,0.000511,120]
[354574996,1740579519683,-151.0,0.000511,120]
[354574997,1740579519710,-157.914161,0.000511,120]
[354574998,1740579519739,-503.374071,0.000511,120]
[354574999,1740579519766,-503.374071,0.000511,120]
[354575000,1740579519792,-245.412774,0.000511,120]
[354575001,1740579519818,-151.0,0.000511,120]
[354575002,1740579519846,-1079.862756,0.000511,120]
[354575003,1740579519872,-151.0,0.000511,120]
[354575004,1740579519905,-1079.862756,0.000511,120]
[354575005,1740579519931,-259.892005,0.000511,120]
[354575006,1740579519958,-259.892005,0.000511,120]
[354575007,1740579519984,-156.852496,0.0005119,120]
[354575008,1740579520011,-156.852496,0.0005119,120]
[354575009,1740579520037,-231.622582,0.0005119,110]
[354575010,1740579520063,-231.622582,0.0005119,110]
[354575011,1740579520089,-151.0,0.0005119,120]
[354575012,1740579520116,-151.0,0.000512,120]
[354575013,1740579520142,-151.0,0.000512,120]
[354575014,1740579520168,-151.465341,0.000512,120]
[354575015,1740579520194,-151.0,0.000512,30]
[354575016,1740579520221,-6000.0,0.000513,120]
[354575017,1740579520248,-264.331781,0.000514,120]
[354575018,1740579520274,-151.0,0.000514,120]
[354575019,1740579520300,-716.92,0.000514,30]
[354575020,1740579520330,-156.852496,0.00051426,120]
[354575021,1740579520358,-156.852496,0.00051426,120]
[354575022,1740579520398,-231.622582,0.00051426,110]
[354575023,1740579520431,-231.622582,0.00051426,110]
[354575024,1740579520458,-151.0,0.00051426,120]
[354575025,1740579520486,-19962.65100397,0.00051687,120]
[354575026,1740579520511,-151.0,0.000518,30]
[354575027,1740579520537,-151.0,0.000518,30]
[354575028,1740579520563,-151.0,0.000518,120]
[354575029,1740579520593,-793.14,0.000518,51]
[354575030,1740579520622,-793.14,0.000518,51]
[354575031,1740579520652,-793.14,0.000518,51]
[354575032,1740579520682,-793.14,0.000518,51]
[354575033,1740579520713,-793.14,0.000518,51]
[354575034,1740579520744,-793.14,0.000518,51]
[354575035,1740579520775,-793.14,0.000518,51]
[354575036,1740579520805,-793.14,0.000518,51]
[354575037,1740579520836,-793.14,0.000518,51]
[354575038,1740579520866,-793.14,0.000518,51]
[354575039,1740579520896,-793.14,0.000518,51]
[354575040,1740579520925,-793.14,0.000518,51]
[354575041,1740579520952,-500.0,0.00052,120]
[354575042,1740579520978,-17832.61771303,0.00052,120]
[354575043,1740579521003,-18900.0,0.00052,30]
[354575044,1740579521028,-46022.68,0.00052,30]
[354575045,1740579521054,-2915.77,0.00052,30]
[354575046,1740579521082,-151.0,0.00052,120]
[354575047,1740579521107,-151.0,0.00052,120]
[354575048,1740579521135,-151.0,0.00052,120]
[354575049,1740579521161,-151.0,0.00052,120]
[354575050,1740579521187,-151.0,0.00052,120]
[354575051,1740579521213,-151.0,0.00052,120]
[354575052,1740579521241,-151.0,0.00052,120]
[354575053,1740579521268,-1450.988475,0.00052,120]
[354575054,1740579521294,-1450.988475,0.00052,120]
[354575055,1740579521323,-157.914161,0.00052,120]
[354575056,1740579521350,-157.914161,0.00052,120]
[354575057,1740579521511,-1450.988475,0.00052,120]
[354575058,1740579521538,-1450.988475,0.00052,120]
[354575059,1740579521566,-151.0,0.00052,120]
[354575060,1740579521593,-151.0,0.00052,120]
[354575061,1740579521619,-157.914161,0.00052,120]
[354575062,1740579521646,-157.914161,0.00052,120]
[354575063,1740579521672,-503.374071,0.00052,120]
[354575064,1740579521698,-503.374071,0.00052,120]
[354575065,1740579521724,-151.0,0.00052,120]
[354575066,1740579521753,-151.0,0.00052,120]
[354575067,1740579521780,-1079.862756,0.00052,120]
[354575068,1740579521808,-151.0,0.00052,120]
[354575069,1740579521836,-1079.862756,0.00052,120]
[354575070,1740579521863,-259.892005,0.00052,120]
[354575071,1740579521889,-44097.76,0.000525,30]
[354575072,1740579521916,-151.0,0.000525,120]
[354575073,1740579521943,-151.0,0.000525,120]
[354575074,1740579521970,-151.0,0.000525,120]
[354575075,1740579521999,-503.374071,0.000525,120]
[354575076,1740579522026,-503.374071,0.000525,120]
[354575077,1740579522052,-1079.862756,0.000525,120]
[354575078,1740579522079,-151.0,0.000525,120]
[354575079,1740579522106,-1079.862756,0.000525,120]
[354575080,1740579522132,-259.892005,0.000525,120]
[354575081,1740579522160,-251.836206,0.00052629,120]
[354575082,1740579522187,-151.0,0.00052642,120]
[354575083,1740579522215,-355.4786638,0.00052642,30]
[354575084,1740579522244,-355.4786638,0.00052642,30]
[354575085,1740579522270,-355.4786638,0.00052642,30]
[354575086,1740579522297,-355.4786638,0.00052642,30]
[354575087,1740579522328,-355.4786638,0.00052642,30]
[354575088,1740579522356,-355.4786638,0.00052642,30]
[354575089,1740579522384,-355.4786638,0.00052642,30]
[354575090,1740579522414,-355.4786638,0.00052642,30]
[354575091,1740579522442,-355.4786638,0.00052642,30]
[354575092,1740579522471,-355.4786638,0.00052642,30]
[354575093,1740579522502,-355.4786638,0.00052642,30]
[354575094,1740579522530,-355.4786638,0.00052642,30]
[354575095,1740579522559,-355.4786638,0.00052642,30]
[354575096,1740579522587,-355.4786638,0.00052642,30]
[354575097,1740579522615,-355.4786638,0.00052642,30]
[354575098,1740579522643,-541.2177332,0.00052642,30]
[354575099,1740579522673,-151.0,0.00052779,120]
[354575100,1740579522703,-151.0,0.00052779,120]
[354575101,1740579522734,-1450.988475,0.00052779,120]
[354575102,1740579522763,-157.914161,0.00052779,120]
[354575103,1740579522803,-1450.988475,0.00052779,120]
[354575104,1740579522834,-157.914161,0.00052779,120]
[354575105,1740579522863,-193.100647,0.00052779,120]
[354575106,1740579522892,-153.0,0.00052779,30]
[354575107,1740579522920,-154.8760086,0.00052779,30]
[354575108,1740579522947,-557.5803526,0.00052779,30]
[354575109,1740579522973,-153.0,0.00052779,30]
[354575110,1740579523003,-557.5803526,0.00052779,30]
[354575111,1740579523029,-154.8760086,0.00052779,30]
[354575112,1740579523056,-153.0,0.00052779,30]
[354575113,1740579523085,-557.5803526,0.00052779,30]
[354575114,1740579523112,-153.0,0.00052779,30]
[354575115,1740579523140,-154.8760086,0.00052779,30]
[354575116,1740579523169,-557.5803526,0.00052779,30]
[354575117,1740579523198,-154.8760086,0.00052779,30]
[354575118,1740579523227,-557.5803526,0.00052779,30]
[354575119,1740579523256,-153.0,0.00052779,30]
[354575120,1740579523285,-154.8760086,0.00052779,30]
[354575121,1740579523312,-153.0,0.00052779,30]
[354575122,1740579523343,-154.8760086,0.00052779,30]
[354575123,1740579523370,-557.5803526,0.00052779,30]
[354575124,1740579523399,-153.0,0.00052779,30]
[354575125,1740579523427,-154.8760086,0.00052779,30]
[354575126,1740579523454,-557.5803526,0.00052779,30]
[354575127,1740579523482,-153.0,0.00052779,30]
[354575128,1740579523509,-154.8760086,0.00052779,30]
[354575129,1740579523536,-557.5803526,0.00052779,30]
[354575130,1740579523563,-153.0,0.00052779,30]
[354575131,1740579523590,-154.8760086,0.00052779,30]
[354575132,1740579523617,-557.5803526,0.00052779,30]
[354575133,1740579523643,-153.0,0.00052779,30]
[354575134,1740579523669,-1115.0111644,0.00052779,30]
[354575135,1740579523697,-154.8760086,0.00052779,30]
[354575136,1740579523724,-153.0,0.00052779,30]
[354575137,1740579523878,-153.0,0.00052779,30]
[354575138,1740579523904,-557.5803526,0.00052779,30]
[354575139,1740579523930,-309.4457046,0.00052779,30]
[354575140,1740579523957,-557.5803526,0.00052779,30]
[354575141,1740579523986,-154.8760086,0.00052779,30]
[354575142,1740579524012,-306.0,0.00052779,30]
[354575143,1740579524038,-154.8760086,0.00052779,30]
[354575144,1740579524064,-316.2823922,0.00052779,30]
[354575145,1740579524091,-557.5803526,0.00052779,30]
[354575146,1740579524116,-154.8760086,0.00052779,30]
[354575147,1740579524142,-557.5803526,0.00052779,30]
[354575148,1740579524168,-213.4120185,0.00052779,30]
[354575149,1740579524195,-557.5803526,0.00052779,30]
[354575150,1740579524223,-799.3095531,0.00052779,30]
[354575151,1740579524253,-309.6663106,0.00052779,30]
[354575152,1740579524281,-1114.8616236,0.00052779,30]
[354575153,1740579524312,-1000.0,0.00052813,120]
[354575154,1740579524342,-716.92,0.000529,30]
[354575155,1740579524371,-18663.0,0.00053,120]
[354575156,1740579524400,-3090.0,0.00053,120]
[354575157,1740579524427,-153.6622173,0.00053053,30]
[354575158,1740579524455,-153.0,0.00053178,120]
[354575159,1740579524485,-153.0,0.00053178,120]
[354575160,1740579524512,-153.0,0.00053178,120]
[354575161,1740579524540,-156.852496,0.000532,120]
[354575162,1740579524569,-156.852496,0.000532,120]
[354575163,1740579524596,-231.622582,0.000532,110]
[354575164,1740579524625,-231.622582,0.000532,110]
[354575165,1740579524653,-151.0,0.000532,120]
[354575166,1740579524681,-151.0,0.000532,120]
[354575167,1740579524708,-151.0,0.000532,30]
[354575168,1740579524737,-151.0,0.000532,30]
[354575169,1740579524764,-168.111428,0.000532,120]
[354575170,1740579524795,-151.0,0.000532,120]
[354575171,1740579524821,-151.0,0.000532,120]
[354575172,1740579524847,-503.374071,0.000532,120]
[354575173,1740579524876,-503.374077,0.000532,120]
[354575174,1740579524902,-1079.862756,0.000532,120]
[354575175,1740579524928,-1079.86275,0.000532,120]
[354575176,1740579524955,-18900.0,0.000535,30]
[354575177,1740579524983,-46022.68,0.000535,30]
[354575178,1740579525009,-2915.77,0.000535,30]
[354575179,1740579525036,-151.0,0.000535,120]
[354575180,1740579525062,-151.0,0.000535,120]
[354575181,1740579525090,-151.0,0.000535,120]
[354575182,1740579525117,-1450.988475,0.000535,120]
[354575183,1740579525146,-157.914161,0.000535,120]
[354575184,1740579525174,-1450.988473,0.000535,120]
[354575185,1740579525202,-157.914165,0.000535,120]
[354575186,1740579525230,-151.0,0.00053537,120]
[354575187,1740579525261,-151.0,0.00053537,120]
[354575188,1740579525288,-153.0,0.00053537,120]
[354575189,1740579525318,-153.0,0.00053537,120]
[354575190,1740579525345,-153.0,0.00053537,120]
[354575191,1740579525373,-154.8760086,0.00053537,30]
[354575192,1740579525403,-154.8760086,0.00053537,30]
[354575193,1740579525431,-154.8760086,0.00053537,30]
[354575194,1740579525458,-154.8760086,0.00053537,30]
[354575195,1740579525488,-153.0,0.00053537,30]
[354575196,1740579525516,-153.0,0.00053537,30]
[354575197,1740579525543,-153.0,0.00053537,30]
[354575198,1740579525570,-153.0,0.00053537,30]
[354575199,1740579525597,-153.0,0.00053537,30]
[354575200,1740579525624,-153.0,0.00053537,30]
[354575201,1740579525651,-153.0,0.00053537,30]
[354575202,1740579525679,-153.0,0.00053537,30]
[354575203,1740579525706,-153.0,0.00053537,30]
[354575204,1740579525735,-153.0,0.00053537,30]
[354575205,1740579525762,-153.0,0.00053601,120]
[354575206,1740579525788,-6408.11477971,0.000539,120]
[354575207,1740579525814,-156.852496,0.000539,120]
[354575208,1740579525841,-156.852496,0.000539,120]
[354575209,1740579525869,-231.622582,0.000539,110]
[354575210,1740579525897,-231.622582,0.000539,110]
[354575211,1740579525925,-151.0,0.000539,120]
[354575212,1740579525954,-153.632781,0.000539,120]
[354575213,1740579525985,-44097.76,0.000539,30]
[354575214,1740579526139,-151.0,0.000539,30]
[354575215,1740579526167,-151.0,0.000539,30]
[354575216,1740579526194,-151.0,0.000539,120]
[354575217,1740579526221,-151.0,0.000539,120]
[354575218,1740579526250,-151.0,0.000539,120]
[354575219,1740579526278,-247.13991,0.000539,120]
[354575220,1740579526308,-1000.0,0.00053949,120]
[354575221,1740579526338,-151.0,0.00053973,120]
[354575222,1740579526366,-156.852496,0.00054,120]
[354575223,1740579526398,-156.852496,0.00054,120]
[354575224,1740579526428,-231.622582,0.00054,110]
[354575225,1740579526455,-231.622582,0.00054,110]
[354575226,1740579526484,-151.0,0.00054,120]
[354575227,1740579526511,-151.0,0.00054,30]
[354575228,1740579526539,-274.609202,0.00054,30]
[354575229,1740579526567,-151.0,0.00054,120]
[354575230,1740579526594,-1000.0,0.00054,120]
[354575231,1740579526621,-200.0,0.00054,120]
[354575232,1740579526650,-312.6032144,0.00054324,30]
[354575233,1740579526678,-1122.0218125,0.00054324,30]
[354575234,1740579526706,-213.3345834,0.00054349,30]
[354575235,1740579526734,-716.92,0.000545,30]
[354575236,1740579526761,-300.0,0.000546,30]
[354575237,1740579526788,-156.852496,0.000546,120]
[354575238,1740579526815,-156.852496,0.000546,120]
[354575239,1740579526842,-231.622582,0.000546,110]
[354575240,1740579526867,-231.622582,0.000546,110]
[354575241,1740579526894,-151.0,0.000546,30]
[354575242,1740579526921,-1000.0,0.00054684,120]
[354575243,1740579526948,-71703.08664751,0.000547,120]
[354575244,1740579526975,-151.0,0.000547,30]
[354575245,1740579527002,-500.0,0.00054794,120]
[354575246,1740579527029,-601.050345,0.00054794,120]
[354575247,1740579527055,-215.875,0.00054794,120]
[354575248,1740579527081,-500.0,0.00054794,120]
[354575249,1740579527108,-500.0,0.00054794,120]
[354575250,1740579527134,-500.0,0.00054794,120]
[354575251,1740579527160,-500.0,0.00054794,120]
[354575252,1740579527187,-152.72388183,0.00054794,120]
[354575253,1740579527214,-2184.67,0.00054794,120]
[354575254,1740579527241,-500.0,0.00054794,120]
[354575255,1740579527267,-500.0,0.00054794,120]
[354575256,1740579527293,-898.5,0.00054794,120]
[354575257,1740579527323,-500.0,0.00054794,120]
[354575258,1740579527350,-1000.0,0.00054794,120]
[354575259,1740579527378,-503.75192469,0.00054794,120]
[354575260,1740579527408,-500.0,0.00054794,120]
[354575261,1740579527437,-500.0,0.00054794,120]
[354575262,1740579527465,-500.0,0.00054794,120]
[354575263,1740579527494,-681.87,0.00054794,120]
[354575264,1740579527521,-1000.0,0.00054794,120]
[354575265,1740579527552,-500.0,0.00054794,120]
[354575266,1740579527579,-231.90120028,0.00054794,120]
[354575267,1740579527606,-500.0,0.00054794,120]
[354575268,1740579527633,-500.0,0.00054794,120]
[354575269,1740579527660,-500.0,0.00054794,120]
[354575270,1740579527686,-500.0,0.00054794,120]
[354575271,1740579527711,-500.0,0.00054794,120]
[354575272,1740579527739,-578.17715789,0.00054794,120]
[354575273,1740579527765,-500.0,0.00054794,120]
[354575274,1740579527790,-500.0,0.00054794,120]
[354575275,1740579527816,-500.0,0.00054794,120]
[354575276,1740579527843,-893.4,0.00054794,120]
[354575277,1740579527869,-500.0,0.00054794,120]
[354575278,1740579527895,-500.0,0.00054794,120]
[354575279,1740579527920,-500.0,0.00054794,120]
[354575280,1740579527946,-500.0,0.00054794,120]
[354575281,1740579527973,-500.0,0.00054794,120]
[354575282,1740579528000,-611.91,0.00054794,120]
[354575283,1740579528026,-500.0,0.00054794,120]
[354575284,1740579528053,-500.0,0.00054794,120]
[354575285,1740579528080,-500.0,0.00054794,120]
[354575286,1740579528107,-500.0,0.00054794,120]
[354575287,1740579528135,-500.0,0.00054794,120]
[354575288,1740579528279,-500.0,0.00054794,120]
[354575289,1740579528319,-500.0,0.00054794,120]
[354575290,1740579528348,-500.0,0.00054794,120]
[354575291,1740579528378,-500.0,0.00054794,120]
[354575292,1740579528410,-500.0,0.00054794,120]
[354575293,1740579528439,-500.0,0.00054794,120]
[354575294,1740579528466,-500.0,0.00054794,120]
[354575295,1740579528495,-500.0,0.00054794,120]
[354575296,1740579528523,-500.0,0.00054794,120]
[354575297,1740579528550,-500.0,0.00054794,120]
[354575298,1740579528577,-500.0,0.00054794,120]
[354575299,1740579528605,-500.0,0.00054794,120]
[354575300,1740579528633,-500.0,0.00054794,120]
[354575301,1740579528660,-500.0,0.00054794,120]
[354575302,1740579528688,-500.0,0.00054794,120]
[354575303,1740579528715,-500.0,0.00054794,120]
[354575304,1740579528742,-500.0,0.00054794,120]
[354575305,1740579528769,-500.0,0.00054794,120]
[354575306,1740579528797,-500.0,0.00054794,120]
[354575307,1740579528825,-500.0,0.00054794,120]
[354575308,1740579528853,-500.0,0.00054794,120]
[354575309,1740579528880,-500.0,0.00054794,120]
[354575310,1740579528909,-500.0,0.00054794,120]
[354575311,1740579528937,-500.0,0.00054794,120]
[354575312,1740579528966,-500.0,0.00054794,120]
[354575313,1740579528996,-500.0,0.00054794,120]
[354575314,1740579529024,-500.0,0.00054794,120]
[354575315,1740579529052,-231.66041193,0.00054794,120]
[354575316,1740579529079,-500.0,0.00054794,120]
[354575317,1740579529107,-1088.69,0.00054794,120]
[354575318,1740579529134,-500.0,0.00054794,120]
[354575319,1740579529161,-500.0,0.00054794,120]
[354575320,1740579529188,-500.0,0.00054794,120]
[354575321,1740579529217,-500.0,0.00054794,120]
[354575322,1740579529246,-500.0,0.00054794,120]
[354575323,1740579529278,-500.0,0.00054794,120]
[354575324,1740579529310,-500.0,0.00054794,120]
[354575325,1740579529341,-703.42,0.00054794,120]
[354575326,1740579529372,-500.0,0.00054794,120]
[354575327,1740579529402,-500.0,0.00054794,120]
[354575328,1740579529433,-500.0,0.00054794,120]
[354575329,1740579529461,-500.0,0.00054794,120]
[354575330,1740579529490,-500.27647179,0.00054794,120]